Workbook

Sheet Allocation
A1: (Nom du GMSR/CADSS)
A2: Tableau des revenus et dépenses - Services à l'enfance (Page 1)
A3: Pour l'exercice terminé le 31 décembre, 2013
A4: (Non vérifié)
B7: REVENUS
B8: Ministère de l'Éducation | C8: La loi de partage des coûts | E8: Total
B9: (Contrat de service modifié le plus récent) | D9: (Calculé) | E9: (Calculé)
A11: Flexibilité totale
A13: 1.1 - Prestation des services de base (100% provincial) | C13: 0 | D13: =B13/(1-C13)*C13 -> 0 | E13: =B13+D13 -> 0
A14: 1.2 - Prestation des services de base - Partage des coûts 80/20 | C14: 0.2 | D14: 0 | E14: 0
A15: 1.3 - Prestation des services de base - Partage des coûts 50/50 - Administration | C15: 0.5 | D15: 0 | E15: 0
A16: 2.1 - Langage | C16: 0 | D16: 0 | E16: 0
A17: 2.2 - Autochtones | C17: 0 | D17: 0 | E17: 0
A18: 2.3 - Coût de la vie | C18: 0 | D18: 0 | E18: 0
A19: 2.4 - Communautés rurales et éloignées | C19: 0 | D19: 0 | E19: 0
A20: 2.5 -Transition vers la maternelle et le jardin d’enfants à temps plein | C20: 0 | D20: 0 | E20: 0
A21: 2.10 - Réparations et entretien | C21: 0 | D21: 0 | E21: 0
A22: 2.11 - Ajustment pour l'utilisation | C22: 0 | D22: 0 | E22: 0
A23: 2.12 - Ajustment pour le plafond | C23: 0 | D23: 0 | E23: 0
A25: Total (subvention à flexibilité totale) | B25: =SUBTOTAL(9,B13:B23) -> 0 | D25: =SUBTOTAL(9,D13:D23) -> 0 | E25: =SUBTOTAL(9,E13:E23) -> 0
A27: 2.6 - Transformation | C27: 0 | D27: =B27/(1-C27)*C27 -> 0 | E27: =B27+D27 -> 0
A29: Flexibilité limitée
A31: 2.7 - Renforcement de la capacité | C31: 0 | D31: =B31/(1-C31)*C31 -> 0 | E31: =B31+D31 -> 0
A32: 4.1 - Réaménagements des immobilisations | C32: 0 | D32: =B32/(1-C32)*C32 -> 0 | E32: =B32+D32 -> 0
A33: 2.8 - Petites installations de distribution d’eau | C33: 0 | D33: =B33/(1-C33)*C33 -> 0 | E33: =B33+D33 -> 0
A35: Total (subvention à flexibilité limitée) | B35: =SUBTOTAL(9,B31:B33) -> 0 | D35: =SUBTOTAL(9,D31:D33) -> 0 | E35: =SUBTOTAL(9,E31:E33) -> 0
A36: Aucune Flexibilité
A38: 2.9 - Territoires non érigés en municipalité | C38: 0 | D38: =B38/(1-C38)*C38 -> 0 | E38: =B38+D38 -> 0
A40: TOTAL | B40: =B25+B27+B35+B38 -> 0 | D40: =D25+D27+D35+D38 -> 0 | E40: =E25+E27+E35+E38 -> 0

Sheet Expenditures
A1: (Name of Entity)
A2: Schedule of Revenues and Expenditures – Children’s Services (Page 2)
A3: For the year ended December 31, 2013
A4: (Unaudited)
A6: EXPENDITURES BY AUSPICE
B7: Non-Profit | E7: Profit | H7: Directly Operated | K7: Other | N7: Total Expenditures
B8: Gross Expenditures | C8: Offsetting Revenues (Parent contribution/other offsetting) | D8: Adjusted Gross Expenditures | E8: Gross Expenditures | F8: Offsetting Revenues (Parent contribution/other offsetting) | G8: Adjusted Gross Expenditures | H8: Gross Expenditures | I8: Offsetting Revenues (Parent contribution/other offsetting) | J8: Adjusted Gross Expenditures | K8: Gross Expenditures | L8: Offsetting Revenues (Parent contribution/other offsetting) | M8: Adjusted Gross Expenditures | N8: Gross Expenditures | O8: Offsetting Revenues (Parent contribution/other offsetting) | P8: Adjusted Gross Expenditures
B9: Sch 2.3, Col. 1 | C9: Sch 2.3, Col. 2 + 3 | D9: Calculated (Sch 2.3, Col. 4) | E9: Sch 2.3, Col. 5 | F9: Sch 2.3, Col. 6 + 7 | G9: Calculated (Sch 2.3, Col. 8) | H9: Sch 2.3, Col. 9 | I9: Sch 2.3, Col. 10+11+12 | J9: Calculated (Sch 2.3, Col. 13) | K9: Sch 2.3, Col. 14 | L9: Sch 2.3, Col. 15 | M9: Calculated (Sch 2.3, Col. 16) | N9: Calculated | O9: Calculated | P9: Calculated
A11: Full Flexibility
A13: 1.1 - General Operating | D13: =B13+C13 -> 0 | G13: =E13+F13 -> 0 | J13: =H13+I13 -> 0 | M13: =K13+L13 -> 0 | N13: =B13+E13+H13+K13 -> 0 | O13: =C13+F13+I13+L13 -> 0 | P13: =N13+O13 -> 0
A14: 1.2 - Regular Fee Subsidy | D14: =B14+C14 -> 0 | G14: =E14+F14 -> 0 | J14: =H14+I14 -> 0 | M14: =K14+L14 -> 0 | N14: =B14+E14+H14+K14 -> 0 | O14: =C14+F14+I14+L14 -> 0 | P14: =N14+O14 -> 0
A15: 1.3 - Extended Day Fee Subsidy | D15: =B15+C15 -> 0 | G15: =E15+F15 -> 0 | J15: =H15+I15 -> 0 | M15: =K15+L15 -> 0 | N15: 0 | O15: 0 | P15: =N15+O15 -> 0
A16: 1.4 - Recreation Fee Subsidy | D16: 0 | G16: 0 | J16: 0 | M16: 0 | N16: 0 | O16: 0 | P16: 0
A17: 1.5 - Ontario Works Formal | D17: =B17+C17 -> 0 | G17: 0 | J17: 0 | M17: 0 | N17: 0 | O17: 0 | P17: 0
A18: 1.6 - Ontario Works Informal | D18: 0 | G18: 0 | J18: 0 | M18: 0 | N18: 0 | O18: 0 | P18: 0
A19: 1.7 - Pay Equity Memorandum | D19: 0 | G19: 0 | J19: 0 | M19: 0 | N19: 0 | O19: 0 | P19: 0
A20: 1.8 - Special Needs Resourcing | D20: 0 | G20: 0 | J20: 0 | M20: 0 | N20: 0 | O20: 0 | P20: 0
A21: 1.9 - Administration | D21: 0 | G21: 0 | J21: 0 | M21: 0 | N21: 0 | O21: 0 | P21: 0
A22: 1.10 - Repairs and Maintenance | D22: 0 | G22: 0 | J22: 0 | M22: 0 | N22: 0 | O22: 0 | P22: 0
A23: 1.11 - Play-based Material | D23: =B23+C23 -> 0 | G23: =E23+F23 -> 0 | J23: =H23+I23 -> 0 | M23: =K23+L23 -> 0 | N23: 0 | O23: 0 | P23: =N23+O23 -> 0
A24: 1.14 - Miscellaneous | D24: =B24+C24 -> 0 | G24: =E24+F24 -> 0 | J24: =H24+I24 -> 0 | M24: =K24+L24 -> 0 | N24: 0 | O24: 0 | P24: =N24+O24 -> 0
A26: Total (full flexibility) | B26: =SUBTOTAL(9,B13:B24) -> 0 | C26: =SUBTOTAL(9,C13:C24) -> 0 | D26: =SUBTOTAL(9,D13:D23) -> 0 | E26: =SUBTOTAL(9,E13:E24) -> 0 | F26: =SUBTOTAL(9,F13:F24) -> 0 | G26: 0 | H26: =SUBTOTAL(9,H13:H24) -> 0 | I26: =SUBTOTAL(9,I13:I24) -> 0 | J26: 0 | K26: =SUBTOTAL(9,K13:K24) -> 0 | L26: 0 | M26: 0 | N26: 0 | O26: 0 | P26: 0
A28: 1.13 - Transformation | D28: =B28+C28 -> 0 | G28: =E28+F28 -> 0 | J28: =H28+I28 -> 0 | M28: =K28+L28 -> 0 | N28: =B28+E28+H28+K28 -> 0 | O28: =C28+F28+I28+L28 -> 0 | P28: =N28+O28 -> 0
A30: Limited Flexibility
A32: 1.12 - Capacity Building | D32: =B32+C32 -> 0 | G32: =E32+F32 -> 0 | J32: =H32+I32 -> 0 | M32: =K32+L32 -> 0 | N32: =B32+E32+H32+K32 -> 0 | O32: 0 | P32: =N32+O32 -> 0
A33: 2.1 - Capital Retrofits | D33: =B33+C33 -> 0 | G33: 0 | J33: =H33+I33 -> 0 | M33: =K33+L33 -> 0 | N33: 0 | O33: 0 | P33: =N33+O33 -> 0
A34: 3.1 - Small Water Works | D34: =B34+C34 -> 0 | G34: 0 | J34: =H34+I34 -> 0 | M34: =K34+L34 -> 0 | N34: 0 | O34: 0 | P34: =N34+O34 -> 0
A36: Total (limited flexibility) | B36: =SUBTOTAL(9,B32:B34) -> 0 | C36: 0 | D36: 0 | E36: 0 | F36: 0 | G36: 0 | H36: 0 | I36: 0 | J36: =SUBTOTAL(9,J32:J34) -> 0 | K36: 0 | L36: 0 | M36: 0 | N36: 0 | O36: =SUBTOTAL(9,O32:O34) -> 0 | P36: 0
A37: No Flexibility
A39: 3.2 - Territory without Municipal Organization | M39: =K39+L39 -> 0 | N39: =B39+E39+H39+K39 -> 0 | O39: =C39+F39+I39+L39 -> 0 | P39: =N39+O39 -> 0
A41: TOTAL | B41: =SUBTOTAL(9,B13:B40) -> 0 | C41: =SUBTOTAL(9,C13:C40) -> 0 | D41: =SUBTOTAL(9,D13:D40) -> 0 | E41: =SUBTOTAL(9,E13:E40) -> 0 | F41: =SUBTOTAL(9,F13:F40) -> 0 | G41: 0 | H41: 0 | I41: 0 | J41: 0 | K41: 0 | L41: 0 | M41: 0 | N41: 0 | O41: =SUBTOTAL(9,O13:O40) -> 0 | P41: 0

Sheet Allocation sample
A1: (Name of Entity)
A2: Schedule of Revenues and Expenditures – Children’s Services (Page 1)
A3: For the year ended December 31, 2013
A4: (Unaudited)
B7: REVENUES
B8: Ministry of Education | C8: Legislated Cost Share | E8: Total
B9: (Most recent Amended Service agreement) | D9: (Calculated) | E9: (Calculated)
A11: Full Flexibility
A13: 1.1 - Core Services Delivery (100% provincial) | B13: 100000 | C13: 0 | D13: =B13/(1-C13)*C13 -> 0 | E13: =B13+D13 -> 100000
A14: 1.2 - Core Services Delivery - Cost Shared Requirement 80/20 | B14: 20000 | C14: 0.2 | D14: 5000 | E14: 25000
A15: 1.3 - Core Service Delivery - Cost Shared Requirement 50/50 - Administration | B15: 15000 | C15: 0.5 | D15: 15000 | E15: 30000
A16: 2.1 - Language | B16: 25000 | C16: 0 | D16: 0 | E16: 25000
A17: 2.2 - Aboriginal | B17: 1000 | C17: 0 | D17: 0 | E17: 1000
A18: 2.3 - Cost of Living | B18: 2000 | C18: 0 | D18: 0 | E18: 2000
A19: 2.4 - Rural/Remote | B19: 3000 | C19: 0 | D19: 0 | E19: 3000
A20: 2.5 - FDK Transition | B20: 4000 | C20: 0 | D20: 0 | E20: 4000
A21: 2.10 - Repairs and Maintenance | B21: 5000 | C21: 0 | D21: 0 | E21: 5000
A22: 2.11 - Utilization Adjustment | B22: 6000 | C22: 0 | D22: 0 | E22: 6000
A23: 2.12 - Capping Adjustment | B23: 7000 | C23: 0 | D23: 0 | E23: 7000
A25: Total (full flexibility) | B25: =SUBTOTAL(9,B13:B23) -> 188000 | D25: =SUBTOTAL(9,D13:D23) -> 20000 | E25: =SUBTOTAL(9,E13:E23) -> 208000
A27: 2.6 - Transformation | B27: 2000 | C27: 0 | D27: =B27/(1-C27)*C27 -> 0 | E27: =B27+D27 -> 2000
A29: Limited Flexibility
A31: 2.7 - Capacity Building | B31: 6000 | C31: 0 | D31: =B31/(1-C31)*C31 -> 0 | E31: =B31+D31 -> 6000
A32: 4.1 - Capital Retrofits | B32: 7000 | C32: 0 | D32: =B32/(1-C32)*C32 -> 0 | E32: =B32+D32 -> 7000
A33: 2.8 - Small Water Works | B33: 8000 | C33: 0 | D33: =B33/(1-C33)*C33 -> 0 | E33: =B33+D33 -> 8000
A35: Total (limited flexibility) | B35: =SUBTOTAL(9,B31:B33) -> 21000 | D35: =SUBTOTAL(9,D31:D33) -> 0 | E35: =SUBTOTAL(9,E31:E33) -> 21000
A36: No Flexibility
A38: 2.9 - Territory Without Municipal Organization | B38: 0 | C38: 0 | D38: =B38/(1-C38)*C38 -> 0 | E38: =B38+D38 -> 0
A40: TOTAL | B40: =B25+B27+B35+B38 -> 211000 | D40: =D25+D27+D35+D38 -> 20000 | E40: =E25+E27+E35+E38 -> 231000

Sheet Expenses sample
A1: (Name of Entity)
A2: Schedule of Revenues and Expenditures – Children’s Services (Page 2)
A3: For the year ended December 31, 2013
A4: (Unaudited)
A6: EXPENDITURES BY AUSPICE
B7: Non-Profit | E7: Profit | H7: Directly Operated | K7: Other | N7: Total Expenditures
B8: Gross Expenditures | C8: Offsetting Revenues (Parent contribution/other offsetting) | D8: Adjusted Gross Expenditures | E8: Gross Expenditures | F8: Offsetting Revenues (Parent contribution/other offsetting) | G8: Adjusted Gross Expenditures | H8: Gross Expenditures | I8: Offsetting Revenues (Parent contribution/other offsetting) | J8: Adjusted Gross Expenditures | K8: Gross Expenditures | L8: Offsetting Revenues (Parent contribution/other offsetting) | M8: Adjusted Gross Expenditures | N8: Gross Expenditures | O8: Offsetting Revenues (Parent contribution/other offsetting) | P8: Adjusted Gross Expenditures
B9: Sch 2.3, Col. 1 | C9: Sch 2.3, Col. 2 + 3 | D9: Calculated (Sch 2.3, Col. 4) | E9: Sch 2.3, Col. 5 | F9: Sch 2.3, Col. 6 + 7 | G9: Calculated (Sch 2.3, Col. 8) | H9: Sch 2.3, Col. 9 | I9: Sch 2.3, Col. 10+11+12 | J9: Calculated (Sch 2.3, Col. 13) | K9: Sch 2.3, Col. 14 | L9: Sch 2.3, Col. 15 | M9: Calculated (Sch 2.3, Col. 16) | N9: Calculated | O9: Calculated | P9: Calculated
A11: Full Flexibility
A13: 1.1 - General Operating | B13: 20 | C13: -1 | D13: =B13+C13 -> 19 | E13: 120 | F13: -11 | G13: =E13+F13 -> 109 | H13: 220 | I13: -31 | J13: =H13+I13 -> 189 | K13: 320 | L13: -41 | M13: =K13+L13 -> 279 | N13: =B13+E13+H13+K13 -> 680 | O13: =C13+F13+I13+L13 -> -84 | P13: =N13+O13 -> 596
A14: 1.2 - Regular Fee Subsidy | B14: 30 | C14: -2 | D14: =B14+C14 -> 28 | E14: 130 | F14: -12 | G14: =E14+F14 -> 118 | H14: 230 | I14: -32 | J14: =H14+I14 -> 198 | K14: 330 | L14: -42 | M14: =K14+L14 -> 288 | N14: =B14+E14+H14+K14 -> 720 | O14: =C14+F14+I14+L14 -> -88 | P14: =N14+O14 -> 632
A15: 1.3 - Extended Day Fee Subsidy | B15: 40 | C15: -3 | D15: =B15+C15 -> 37 | E15: 140 | F15: -13 | G15: =E15+F15 -> 127 | H15: 240 | I15: -33 | J15: =H15+I15 -> 207 | K15: 340 | L15: -43 | M15: =K15+L15 -> 297 | N15: 760 | O15: -92 | P15: =N15+O15 -> 668
A16: 1.4 - Recreation Fee Subsidy | B16: 50 | C16: -4 | D16: 46 | E16: 150 | F16: -14 | G16: 136 | H16: 250 | I16: -34 | J16: 216 | K16: 350 | L16: -44 | M16: 306 | N16: 800 | O16: -96 | P16: 704
A17: 1.5 - Ontario Works Formal | B17: 60 | C17: -5 | D17: =B17+C17 -> 55 | E17: 160 | F17: -15 | G17: 145 | H17: 260 | I17: -35 | J17: 225 | K17: 360 | L17: -45 | M17: 315 | N17: 840 | O17: -100 | P17: 740
A18: 1.6 - Ontario Works Informal | B18: 70 | C18: -6 | D18: 64 | E18: 170 | F18: -16 | G18: 154 | H18: 270 | I18: -36 | J18: 234 | K18: 370 | L18: -46 | M18: 324 | N18: 880 | O18: -104 | P18: 776
A19: 1.7 - Pay Equity Memorandum | B19: 80 | C19: -7 | D19: 73 | E19: 180 | F19: -17 | G19: 163 | H19: 280 | I19: -37 | J19: 243 | K19: 380 | L19: -47 | M19: 333 | N19: 920 | O19: -108 | P19: 812
A20: 1.8 - Special Needs Resourcing | B20: 90 | C20: -8 | D20: 82 | E20: 190 | F20: -18 | G20: 172 | H20: 290 | I20: -38 | J20: 252 | K20: 390 | L20: -48 | M20: 342 | N20: 960 | O20: -112 | P20: 848
A21: 1.9 - Administration | B21: 100 | C21: -9 | D21: 91 | E21: 200 | F21: -19 | G21: 181 | H21: 300 | I21: -39 | J21: 261 | K21: 400 | L21: -49 | M21: 351 | N21: 1000 | O21: -116 | P21: 884
A22: 1.10 - Repairs and Maintenance | B22: 110 | C22: -10 | D22: 100 | E22: 210 | F22: -20 | G22: 190 | H22: 310 | I22: -40 | J22: 270 | K22: 410 | L22: -50 | M22: 360 | N22: 1040 | O22: -120 | P22: 920
A23: 1.11 - Play-based Material | B23: 120 | C23: -11 | D23: =B23+C23 -> 109 | E23: 220 | F23: -21 | G23: =E23+F23 -> 199 | H23: 320 | I23: -41 | J23: =H23+I23 -> 279 | K23: 420 | L23: -51 | M23: =K23+L23 -> 369 | N23: 1080 | O23: -124 | P23: =N23+O23 -> 956
A24: 1.14 - Miscellaneous | B24: 120 | C24: -11 | D24: =B24+C24 -> 109 | E24: 220 | F24: -21 | G24: =E24+F24 -> 199 | H24: 320 | I24: -41 | J24: =H24+I24 -> 279 | K24: 420 | L24: -51 | M24: =K24+L24 -> 369 | N24: 1080 | O24: -124 | P24: =N24+O24 -> 956
A26: Total (full flexibility) | B26: =SUBTOTAL(9,B13:B24) -> 890 | C26: -77 | D26: 813 | E26: 2090 | F26: -197 | G26: 1893 | H26: 3290 | I26: -437 | J26: 2853 | K26: 4490 | L26: -557 | M26: 3933 | N26: 10760 | O26: -1268 | P26: 9492
A28: 1.13 - Transformation | B28: 2 | C28: -1 | D28: =B28+C28 -> 1 | E28: 2 | F28: -1 | G28: =E28+F28 -> 1 | H28: 2 | I28: -1 | J28: =H28+I28 -> 1 | K28: 2 | L28: -1 | M28: =K28+L28 -> 1 | N28: =B28+E28+H28+K28 -> 8 | O28: =C28+F28+I28+L28 -> -4 | P28: =N28+O28 -> 4
A30: Limited Flexibility
A32: 1.12 - Capacity Building | B32: 50 | C32: -1 | D32: =B32+C32 -> 49 | E32: 70 | F32: -1 | G32: =E32+F32 -> 69 | H32: 90 | I32: -1 | J32: =H32+I32 -> 89 | K32: 110 | L32: -1 | M32: =K32+L32 -> 109 | N32: =B32+E32+H32+K32 -> 320 | O32: -4 | P32: =N32+O32 -> 316
A33: 2.1 - Capital Retrofits | B33: 60 | C33: -1 | D33: =B33+C33 -> 59 | E33: 80 | F33: -1 | G33: 79 | H33: 100 | I33: -1 | J33: =H33+I33 -> 99 | K33: 120 | L33: -1 | M33: =K33+L33 -> 119 | N33: 360 | O33: -4 | P33: =N33+O33 -> 356
A34: 3.1 - Small Water Works | B34: 70 | C34: -1 | D34: =B34+C34 -> 69 | E34: 90 | F34: -1 | G34: 89 | H34: 110 | I34: -1 | J34: =H34+I34 -> 109 | K34: 130 | L34: -1 | M34: =K34+L34 -> 129 | N34: 400 | O34: -4 | P34: =N34+O34 -> 396
A36: Total (limited flexibility) | B36: =SUBTOTAL(9,B32:B34) -> 180 | C36: =SUBTOTAL(9,C32:C34) -> -3 | D36: 177 | E36: 240 | F36: -3 | G36: 237 | H36: 300 | I36: -3 | J36: 297 | K36: 360 | L36: -3 | M36: 357 | N36: 1080 | O36: =SUBTOTAL(9,O32:O34) -> -12 | P36: 1068
A37: No Flexibility
A39: 3.2 - Territory without Municipal Organization | K39: 2 | L39: -1 | M39: =K39+L39 -> 1 | N39: =B39+E39+H39+K39 -> 2 | O39: =C39+F39+I39+L39 -> -1 | P39: =N39+O39 -> 1
A41: TOTAL | B41: =SUBTOTAL(9,B13:B40) -> 1072 | C41: =SUBTOTAL(9,C13:C40) -> -81 | D41: =SUBTOTAL(9,D13:D40) -> 991 | E41: =SUBTOTAL(9,E13:E40) -> 2332 | F41: =SUBTOTAL(9,F13:F40) -> -201 | G41: 2131 | H41: 3592 | I41: -441 | J41: 3151 | K41: 4854 | L41: -562 | M41: 4292 | N41: 11850 | O41: =SUBTOTAL(9,O13:O40) -> -1285 | P41: 10565
